bitfinex-derivatives/quotes_SOLF0:USTF0_20250325
["timestamp","ask_amount","ask_price","bid_price","bid_amount"]
[1742865409813,0.05299363,141.46,141.44,7.0692]
[1742865412619,7.12129363,141.46,141.43,7.12115511]
[1742865415422,7.0692,141.44,141.43,0.05165511]
[1742865416916,25.22,141.44,141.37,25.22]
[1742865417719,7.0715,141.4,141.37,32.2926]
[1742865418019,7.0715,141.4,141.39,0.04998209]
[1742865419521,7.0715,141.4,141.32,2.0042]
[1742865419522,7.0728,141.37,141.32,27.2242]
[1742865420823,0.04745051,141.36,141.33,0.05119444]
[1742865421725,0.04745051,141.36,141.35,7.0737]
[1742865422115,0.04745051,141.36,141.34,7.074]
[1742865422321,0.04745051,141.36,141.33,0.05119444]
[1742865423317,7.0742,141.34,141.33,0.05119444]
[1742865423929,7.0757,141.32,141.28,27.2743]
[1742865424124,12.07972401,141.37,141.25,1.9684]
[1742865424328,25.22,141.34,141.26,25.24]
[1742865424639,25.22,141.34,141.27,7.85306965]
[1742865424821,25.22,141.34,141.27,0.77576965]
[1742865425323,7.12369078,141.32,141.29,0.03887307]
[1742865425520,0.04809078,141.32,141.29,0.03887307]
[1742865425928,7.0761,141.31,141.29,0.03887307]
[1742865426532,0.04809078,141.32,141.29,0.03887307]
[1742865426533,7.0762,141.3,141.29,0.03887307]
[1742865427632,7.076,141.31,141.29,0.03887307]
[1742865428029,0.04809078,141.32,141.29,0.03887307]
[1742865429932,7.0762,141.3,141.29,0.03887307]
[1742865430434,7.0762,141.3,141.14,39.4084]
[1742865430435,19.15972401,141.3,141.14,39.4084]
[1742865430627,12.07972401,141.3,141.17,3.8872]
[1742865431030,12.07972401,141.31,141.17,3.8872]
[1742865431231,25.24,141.3,141.17,3.8872]
[1742865431437,0.04896037,141.25,141.17,3.8872]
[1742865431744,0.04896037,141.25,141.24,7.0789]
[1742865431942,0.04896037,141.25,141.21,25.24]
[1742865432139,0.04896037,141.25,141.22,7.08]
[1742865432640,0.04896037,141.25,141.21,25.24]
[1742865433748,0.04896037,141.25,141.22,7.08]
[1742865433941,0.04896037,141.25,141.21,25.24]
[1742865434142,0.04896037,141.25,141.24,7.0792]
[1742865435443,0.04896037,141.25,141.21,25.24]
[1742865445049,0.04896037,141.25,141.22,5.9971]
[1742865446157,18.01442401,141.33,141.22,5.9971]
[1742865446460,25.26,141.32,141.22,5.9971]
[1742865447157,0.04668374,141.28,141.26,0.04896038]
[1742865450959,0.04668374,141.28,141.22,2.013]
[1742865451463,0.04668374,141.28,141.21,25.26]
[1742865451659,0.04668374,141.28,141.22,7.08]
[1742865451861,0.04668374,141.28,141.21,25.26]
[1742865452055,7.0785,141.26,141.23,7.0795]
[1742865452254,0.04668374,141.28,141.21,25.26]
[1742865452455,25.26,141.29,141.21,25.26]
[1742865452655,7.0765,141.3,141.27,7.0777]
[1742865453062,7.12368387,141.3,141.27,7.0777]
[1742865453866,7.0768,141.29,141.26,7.0781]
[1742865456060,0.04718387,141.3,141.25,25.26]
[1742865456664,0.04718387,141.3,141.27,7.0774]
[1742865457259,7.12348387,141.3,141.27,7.0774]
[1742865458763,0.04718387,141.3,141.25,25.26]
[1742865459166,25.28718387,141.3,141.22,29.1859]
[1742865459467,37.36690788,141.3,141.22,32.3199]
[1742865459666,37.36690788,141.3,141.17,5.767]
[1742865459971,7.0792,141.25,141.21,7.0804]
[1742865460267,0.04457214,141.25,141.2,25.24]
[1742865460460,7.12357214,141.25,141.22,7.08]
[1742865460865,7.12357214,141.25,141.2,25.24]
[1742865461068,0.04457214,141.25,141.2,25.24]
[1742865461871,0.04457214,141.25,141.24,7.0792]
[1742865464570,7.0792,141.24,141.17,5.767]
[1742865464866,7.0792,141.24,141.18,25.26]
[1742865465074,0.05352229,141.22,141.18,25.26]
[1742865465575,0.05352229,141.22,141.21,7.0808]
[1742865466375,0.05352229,141.22,141.21,32.3408]
[1742865466674,29.40765687,141.29,141.25,7.0787]
[1742865466875,7.078,141.27,141.21,25.26]
[1742865467073,7.078,141.27,141.24,7.079]
[1742865467374,7.079,141.25,141.21,25.26]
[1742865467674,0.04892792,141.24,141.23,7.0794]
[1742865477480,29.40765687,141.3,141.22,2.03909268]
[1742865477980,7.0772,141.29,141.22,2.03909268]
[1742865478183,29.40765687,141.3,141.22,2.03909268]
[1742865478683,0.05409012,141.27,141.22,2.03909268]
[1742865480385,7.13209012,141.27,141.22,2.03909268]
[1742865480785,7.13209012,141.27,141.25,7.0784]
[1742865481077,0.05409012,141.27,141.24,25.24]
[1742865481881,0.05409012,141.27,141.26,7.0782]
[1742865482086,0.05409012,141.27,141.24,25.24]
[1742865482282,0.05409012,141.27,141.25,0.05224837]
[1742865482579,0.05409012,141.27,141.25,7.13074837]
[1742865483785,0.05409012,141.27,141.26,7.0782]
[1742865484289,0.05409012,141.27,141.25,0.05224837]
[1742865484875,7.0782,141.26,141.25,0.05224837]
[1742865485080,0.05409012,141.27,141.17,2.0198]
[1742865485281,12.07972401,141.27,141.18,25.24]
[1742865485476,16.01232401,141.27,141.18,25.24]
[1742865485683,7.0795,141.24,141.21,7.0806]
[1742865486177,7.0785,141.26,141.23,7.0795]
[1742865486388,0.0474809,141.24,141.23,7.0795]
[1742865486982,0.0474809,141.24,141.21,0.05020184]
[1742865487382,7.0803,141.22,141.21,0.05020184]
[1742865487582,0.0474809,141.24,141.21,0.05020184]
[1742865487783,7.08,141.23,141.21,0.05020184]
[1742865488183,0.0474809,141.24,141.21,0.05020184]
[1742865488587,7.0803,141.22,141.21,0.05020184]
[1742865489089,7.0803,141.22,141.18,25.24]
[1742865489595,7.08,141.23,141.19,7.0817]
[1742865489787,0.0474809,141.24,141.19,7.0817]
[1742865489983,7.0806,141.22,141.18,32.3219]
[1742865490289,0.0474809,141.24,141.18,32.3219]
[1742865490789,7.0805,141.22,141.18,32.3219]
[1742865491284,7.0805,141.22,141.18,25.24]
[1742865491590,7.08,141.23,141.19,7.0814]
[1742865492191,7.0803,141.22,141.19,7.0814]
[1742865493090,7.0808,141.21,141.18,32.322]
[1742865493279,25.24,141.25,141.18,25.24]
[1742865493481,0.050122,141.21,141.19,7.0816]
[1742865494791,0.050122,141.21,141.2,7.0813]
[1742865494987,31.37575687,141.27,141.19,5.7964]
[1742865495291,7.0795,141.24,141.21,7.0804]
[1742865495592,7.0795,141.24,141.21,32.3404]
[1742865496090,7.12717889,141.24,141.21,32.38789536]
[1742865496390,7.0798,141.23,141.21,25.30749536]
[1742865498897,7.0803,141.22,141.21,25.30749536]
[1742865499098,7.0803,141.22,141.21,0.04749536]
[1742865506406,7.0816,141.2,141.17,7.0825]
[1742865506603,39.22422401,141.25,141.16,32.3431]
[1742865506807,39.22422401,141.25,141.16,25.26]
[1742865507003,39.22422401,141.25,141.16,32.343]
[1742865507405,12.07972401,141.24,141.16,7.083]
[1742865507609,7.0821,141.19,141.16,7.083]
[1742865508013,7.12685313,141.19,141.16,7.083]
[1742865510220,7.0824,141.18,141.16,7.083]
[1742865510919,7.0824,141.18,141.15,9.0103]
[1742865511110,7.0824,141.18,141.15,1.9268]
[1742865511620,7.0824,141.18,141.16,7.0832]
[1742865512009,7.0824,141.18,141.15,1.9268]
[1742865512212,7.0824,141.18,141.15,9.0102]
[1742865512422,7.0824,141.18,141.15,1.9268]
[1742865512720,7.0824,141.18,141.16,7.083]
[1742865514222,7.0828,141.17,141.15,9.0104]
[1742865515522,7.0825,141.18,141.16,7.0833]
[1742865515824,0.04475313,141.19,141.14,25.26]
[1742865516021,7.0828,141.17,141.15,7.0835]
[1742865516320,0.04475313,141.19,141.14,25.26]
[1742865517515,7.0825,141.18,141.16,7.0833]
[1742865517815,0.04475313,141.19,141.14,25.26]
[1742865518009,7.12675313,141.19,141.14,25.26]
[1742865518722,7.12675313,141.19,141.17,7.0827]
[1742865520925,0.04475313,141.19,141.17,7.0827]
[1742865521522,7.12655313,141.19,141.17,7.0827]
[1742865521718,0.04475313,141.19,141.17,7.0827]
[1742865522216,0.04475313,141.19,141.18,7.0823]
[1742865522530,0.04475313,141.19,141.14,25.26]
[1742865522531,0.04475313,141.19,141.17,7.0825]
[1742865526628,7.12665313,141.19,141.16,7.083]
[1742865527422,7.12665313,141.19,141.17,7.0827]
[1742865528728,0.04475313,141.19,141.14,25.26]
[1742865528931,0.04475313,141.19,141.17,25.26]
[1742865530634,0.04475313,141.19,141.18,7.0823]
[1742865535423,7.12655313,141.19,141.17,25.26]
[1742865535729,0.04475313,141.19,141.17,25.26]
[1742865535930,0.04475313,141.19,141.18,7.0823]
[1742865538132,29.40765687,141.25,141.22,7.0802]
[1742865538338,29.40765687,141.25,141.21,25.26]
[1742865538538,36.48665687,141.25,141.21,25.26]
[1742865538732,36.48665687,141.25,141.22,7.08]
[1742865538929,7.079,141.25,141.22,7.08]
[1742865539231,7.12548976,141.25,141.22,7.12577287]
[1742865540841,7.12548976,141.25,141.23,7.0797]
[1742865541036,0.04648976,141.25,141.23,7.0797]
[1742865541737,0.04648976,141.25,141.24,7.0792]
[1742865542139,0.04648976,141.25,141.22,0.04577287]
[1742865543636,0.04648976,141.25,141.23,7.0797]
[1742865546931,0.04648976,141.25,141.22,0.04577287]
[1742865549241,7.0797,141.23,141.22,0.04577287]
[1742865549440,0.04648976,141.25,141.17,25.24]
[1742865549748,12.07972401,141.24,141.16,25.24]
[1742865549941,7.0823,141.18,141.16,25.24]
[1742865550134,1.9031,141.23,141.13,3.8377]
[1742865550342,1.9031,141.23,141.14,25.24]
[1742865550642,7.0827,141.18,141.14,32.3239]
[1742865551239,7.0827,141.18,141.14,7.0839]
[1742865551447,7.0827,141.18,141.14,32.3239]
[1742865551646,7.0827,141.18,141.14,7.0839]
[1742865551846,0.05149312,141.2,141.14,25.24]
[1742865552047,12.13121713,141.2,141.12,1.9]
[1742865552247,7.0845,141.14,141.09,10.8977]
[1742865552544,12.07972401,141.18,141.1,25.24]
[1742865552847,0.04494401,141.13,141.1,25.24]
[1742865554546,0.04494401,141.13,141.09,3.8111]
[1742865554740,7.0856,141.12,141.09,25.24]
[1742865554945,0.04494401,141.13,141.09,25.24]
[1742865555145,0.04494401,141.13,141.06,1.9196]
[1742865555442,7.0858,141.11,141.06,34.2476]
[1742865555846,0.05351408,141.1,141.06,34.2476]
[1742865556047,0.05351408,141.1,141.07,7.0876]
[1742865556847,0.05351408,141.1,141.08,7.0872]
[1742865557450,0.05351408,141.1,141.08,32.3472]
[1742865558051,0.05351408,141.1,141.09,7.0868]
[1742865559744,0.05351408,141.1,141.08,32.3471]
[1742865560139,0.05351408,141.1,141.08,25.26]
[1742865560843,0.05351408,141.1,141.09,7.0868]
[1742865563849,0.05351408,141.1,141.08,32.3469]
[1742865564056,0.05351408,141.1,141.06,27.1796]
[1742865564456,0.05351408,141.1,141.07,7.0873]
[1742865564655,0.05351408,141.1,141.06,27.1796]
[1742865564953,0.05351408,141.1,141.08,7.087]
[1742865567655,0.05351408,141.1,141.09,7.0868]
[1742865568261,0.05351408,141.1,141.08,7.087]
[1742865569366,0.05351408,141.1,141.06,25.26]
[1742865569966,0.05351408,141.1,141.09,7.0868]
[1742865571165,0.05351408,141.1,141.08,7.087]
[1742865572470,0.05351408,141.1,141.01,1.9112]
[1742865572667,25.26,141.13,141.02,25.26]
[1742865572963,0.05259283,141.07,141.02,25.26]
[1742865573169,0.05259283,141.07,141.05,7.0886]
[1742865573468,0.05259283,141.07,141.02,25.26]
[1742865573864,0.05259283,141.07,141.05,7.0885]
[1742865574668,0.05259283,141.07,141.06,7.0883]
[1742865574872,14.1636,141.19,141.06,25.26]
[1742865575171,51.50332401,141.19,141.07,3.8061]
[1742865575373,7.085,141.13,141.07,3.8061]
[1742865575873,0.04468208,141.11,141.1,7.0859]
[1742865576072,7.0855,141.12,141.1,32.3459]
[1742865576274,7.13955826,141.12,141.1,32.3459]
[1742865577275,0.05405826,141.12,141.1,32.3459]
[1742865578979,0.05405826,141.12,141.1,25.26]
[1742865579570,7.13955826,141.12,141.09,7.13417079]
[1742865580073,0.05405826,141.12,141.09,0.04777079]
[1742865580272,7.0863,141.1,141.09,0.04777079]
[1742865580675,7.13955826,141.12,141.09,0.04777079]
[1742865581073,0.05405826,141.12,141.09,0.04777079]
[1742865581973,7.0863,141.1,141.09,0.04777079]
[1742865584677,7.086,141.11,141.09,0.04777079]
[1742865585281,7.0863,141.1,141.09,0.04777079]
[1742865586579,7.086,141.11,141.09,0.04777079]
[1742865586780,0.05405826,141.12,141.09,0.04777079]
[1742865587078,7.0858,141.11,141.09,0.04777079]
[1742865587678,7.0863,141.1,141.09,0.04777079]
[1742865588182,7.0873,141.09,141.04,25.26]
[1742865588573,25.26,141.13,141.04,25.26]
[1742865588773,7.0856,141.12,141.04,25.26]
[1742865589274,0.05351124,141.09,141.08,7.087]
[1742865589981,0.05351124,141.09,141.07,7.0875]
[1742865593685,0.05351124,141.09,141.08,7.0873]
[1742865594383,0.05351124,141.09,141.04,25.26]
[1742865594384,0.05351124,141.09,141.07,7.0875]
[1742865594588,0.05351124,141.09,141.04,25.26]
[1742865594892,0.05351124,141.09,141.07,7.0874]
[1742865596991,0.05351124,141.09,141.08,7.0873]
[1742865604293,0.05351124,141.09,141.07,32.3477]
[1742865605392,0.05351124,141.09,141.07,7.0877]
[1742865606501,7.14041124,141.09,141.06,7.088]
[1742865606798,7.14031124,141.09,141.06,7.0881]
[1742865607098,0.05351124,141.09,141.05,25.26]
[1742865608005,7.14031124,141.09,141.07,7.0878]
[1742865609303,7.14031124,141.09,141.06,7.088]
[1742865610302,7.14031124,141.09,141.05,32.3484]
[1742865610303,7.0874,141.08,141.05,32.3484]
[1742865610807,0.05351124,141.09,141.05,25.26]
[1742865610998,0.05351124,141.09,140.97,57.61520062]
[1742865611302,25.26,141.1,140.98,31.1163]
[1742865611504,0.05097744,141.04,140.98,31.1163]
[1742865611700,0.05097744,141.04,141.02,7.0902]
[1742865612404,0.05097744,141.04,141.0,25.26]
[1742865613907,0.05097744,141.04,141.01,7.0905]
[1742865615298,0.05097744,141.04,141.02,7.0902]
[1742865616107,0.05097744,141.04,141.01,7.0906]
[1742865616303,0.05097744,141.04,140.98,5.8563]
[1742865616503,0.05097744,141.04,140.99,25.26]
[1742865616808,7.0909,141.01,140.99,25.26]
[1742865617009,7.0909,141.01,140.98,12.9483]
[1742865617304,7.14237783,141.01,140.98,38.2083]
[1742865618305,0.05147783,141.01,140.98,38.2083]
[1742865618496,0.05147783,141.01,140.99,7.0917]
[1742865618701,0.05147783,141.01,140.98,31.1163]
[1742865619108,0.05147783,141.01,141.0,7.0913]
[1742865619310,0.05147783,141.01,140.99,25.26]
[1742865620503,0.05147783,141.01,141.0,7.0913]
[1742865623213,0.05147783,141.01,140.99,32.3515]
[1742865624509,0.05147783,141.01,141.0,7.0913]
[1742865630811,0.05147783,141.01,140.99,7.0915]
[1742865631419,7.14247783,141.01,140.98,7.0922]
[1742865632520,0.05147783,141.01,140.98,7.0922]
[1742865633120,7.14247783,141.01,140.99,7.0917]
[1742865633524,0.05147783,141.01,140.99,7.0917]
[1742865633724,7.14267783,141.01,140.98,7.0921]
[1742865634224,0.05147783,141.01,140.99,7.0916]
[1742865634825,0.05147783,141.01,141.0,7.0913]
[1742865638631,0.05147783,141.01,140.99,25.28]
[1742865639133,7.0913,141.0,140.99,25.28]
[1742865640130,0.05147783,141.01,140.99,25.28]
[1742865640731,0.05147783,141.01,141.0,7.0913]
[1742865641833,0.05147783,141.01,140.99,32.3716]
[1742865642436,0.05147783,141.01,140.99,25.28]
[1742865643236,7.0913,141.0,140.99,25.28]
[1742865650643,7.0913,141.0,140.99,32.3718]
[1742865651337,7.14247783,141.01,140.99,7.0918]
[1742865651537,7.14247783,141.01,141.0,7.0913]
[1742865651538,0.05147783,141.01,141.0,7.0913]
[1742865657246,29.40765687,141.07,141.05,7.0885]
[1742865657644,36.49575687,141.07,141.05,7.0885]
[1742865658250,36.54736611,141.07,141.05,7.14012568]
[1742865658440,7.0883,141.06,141.05,0.05162568]
[1742865660648,7.13960924,141.07,141.05,7.14042568]
[1742865660846,0.05160924,141.07,141.05,0.05162568]
[1742865661246,7.0883,141.06,141.05,0.05162568]
[1742865662153,7.13970924,141.07,141.05,0.05162568]
[1742865662354,0.05160924,141.07,141.05,0.05162568]
[1742865662853,0.05160924,141.07,141.05,7.13992568]
[1742865664749,0.05160924,141.07,141.06,7.0883]
[1742865666847,0.05160924,141.07,141.05,7.14022568]
[1742865669252,0.05160924,141.07,141.06,7.0883]
[1742865669855,0.05160924,141.07,141.06,32.3483]
[1742865674759,0.05160924,141.07,141.06,25.26]
[1742865676160,0.05160924,141.07,141.06,32.3483]
[1742865683366,0.05160924,141.07,141.06,25.26]
[1742865684165,7.13940924,141.07,141.06,25.26]
[1742865686068,0.05160924,141.07,141.06,25.26]
[1742865686668,0.05160924,141.07,141.06,32.3483]
[1742865689972,0.05160924,141.07,141.06,25.26]
[1742865693577,0.05160924,141.07,141.05,7.13992568]
[1742865693776,0.05160924,141.07,141.05,32.39992568]
[1742865696376,0.05160924,141.07,141.06,7.0883]
[1742865696684,29.40765687,141.14,141.05,25.31162568]
[1742865696878,7.0856,141.12,141.09,7.0866]
[1742865697077,29.40765687,141.14,141.08,25.26]
[1742865697576,7.0855,141.12,141.09,7.0867]
[1742865697780,7.13802471,141.12,141.1,0.04810558]
[1742865698482,0.05252471,141.12,141.1,0.04810558]
[1742865699080,0.05252471,141.12,141.1,7.13410558]
[1742865700583,7.13792471,141.12,141.1,7.13410558]
[1742865701679,0.05252471,141.12,141.11,7.0858]
[1742865702982,0.05252471,141.12,141.11,32.3458]
[1742865704684,7.0829,141.17,141.11,25.26]
[1742865704986,7.0829,141.17,141.14,7.0838]
[1742865705285,7.0829,141.17,141.14,25.24]
[1742865705687,0.0544796,141.17,141.15,7.0835]
[1742865705885,0.0544796,141.17,141.14,25.28676835]
[1742865706089,29.40765687,141.19,141.14,25.28676835]
[1742865706284,29.40765687,141.19,141.18,7.0823]
[1742865706483,29.40765687,141.19,141.18,32.3223]
[1742865706880,29.40765687,141.19,141.18,25.24]
[1742865707681,29.40765687,141.19,141.18,32.3223]
[1742865708486,23.22865687,141.19,141.18,32.3223]
[1742865708687,78.46909547,141.2,141.19,7.0818]
[1742865709688,73.12559547,141.2,141.19,7.0818]
[1742865709891,316.62086417,141.24,141.18,25.24]
[1742865709892,34.97138714,141.27,141.18,25.24]
[1742865710285,7.0793,141.24,141.18,25.24]
[1742865710686,7.0789,141.25,141.18,25.24]
[1742865711189,0.04595881,141.23,141.2,0.04554274]
[1742865711694,0.04595881,141.23,141.21,25.24]
[1742865712599,7.0804,141.22,141.21,25.24]
[1742865713284,7.12585881,141.23,141.21,25.24]
[1742865713790,0.04595881,141.23,141.21,32.3207]
[1742865714195,0.04595881,141.23,141.21,25.24]
[1742865714399,0.04595881,141.23,141.22,7.0803]
[1742865716196,3.8751,141.27,141.23,7.0793]
[1742865716393,3.8751,141.27,141.24,25.24]
[1742865717497,7.0783,141.26,141.24,25.29029519]
[1742865717798,3.92382053,141.27,141.24,25.29029519]
[1742865718395,11.00182053,141.27,141.24,25.29029519]
[1742865719903,11.00182053,141.27,141.24,32.36949519]
[1742865721104,3.92382053,141.27,141.24,0.05029519]
[1742865721601,7.0785,141.26,141.24,0.05029519]
[1742865722608,7.0787,141.25,141.24,0.05029519]
[1742865726100,7.0785,141.26,141.24,7.12949519]
[1742865726501,3.92382053,141.27,141.24,0.05029519]
[1742865726701,1.93142053,141.27,141.24,0.05029519]
[1742865726900,1.93142053,141.27,141.24,25.27029519]
[1742865727101,1.93142053,141.27,141.25,7.0787]
[1742865728211,1.93142053,141.27,141.26,7.0782]
[1742865728708,1.93142053,141.27,141.24,25.27029519]
[1742865729509,1.93142053,141.27,141.25,7.0783]
[1742865729810,1.93142053,141.27,141.26,7.0782]
[1742865731905,1.93142053,141.27,141.24,25.27029519]
[1742865732301,1.8888,141.26,141.24,0.05029519]
[1742865732608,2.0104,141.25,141.18,25.22]
[1742865733206,7.0815,141.2,141.18,32.3023]
[1742865733406,2.0104,141.25,141.13,1.8738]
[1742865733615,0.04622266,141.2,141.18,0.04937607]
[1742865733803,7.0818,141.19,141.18,0.04937607]
[1742865734413,7.0827,141.18,141.15,7.0836]
[1742865735510,7.0827,141.18,141.15,7.13721607]
[1742865735718,7.13632715,141.18,141.16,7.0832]
[1742865736110,7.13632715,141.18,141.15,0.05361607]
[1742865736314,7.13632715,141.18,141.15,7.13711607]
[1742865737714,7.0828,141.17,141.15,7.13711607]
[1742865739419,7.0828,141.17,141.15,0.05361607]
[1742865740420,7.0828,141.17,141.15,7.13731607]
[1742865740915,7.13612715,141.18,141.15,7.13731607]
[1742865741115,0.05362715,141.18,141.15,7.13731607]
[1742865741619,7.13612715,141.18,141.15,7.13731607]
[1742865741821,0.05362715,141.18,141.15,7.13731607]
[1742865742120,7.13612715,141.18,141.15,7.13731607]
[1742865743317,0.05362715,141.18,141.15,0.05361607]
[1742865744019,0.05362715,141.18,141.16,7.0829]
[1742865744221,0.05362715,141.18,141.15,0.05361607]
[1742865745116,7.0833,141.16,141.15,0.05361607]
[1742865749622,7.0845,141.14,141.06,12.07972401]
[1742865749919,25.22,141.18,141.11,7.0857]
[1742865750124,7.0846,141.14,141.11,7.0857]
[1742865750722,7.13173911,141.14,141.11,7.1362584]
[1742865750921,7.13173911,141.14,141.12,7.0852]
[1742865751330,0.04713911,141.14,141.12,7.0852]
[1742865752029,7.13143911,141.14,141.12,7.0852]
[1742865753431,0.04713911,141.14,141.12,7.0852]
[1742865754128,7.13163911,141.14,141.12,7.0852]
[1742865754924,0.04713911,141.14,141.11,25.2905584]
[1742865755731,0.04713911,141.14,141.13,7.0848]
[1742865758039,0.04713911,141.14,141.11,25.2905584]
[1742865758421,0.04713911,141.14,141.11,0.0505584]
[1742865758628,0.04713911,141.14,141.13,7.0848]
[1742865762421,7.13143911,141.14,141.12,25.24]
[1742865763935,7.13143911,141.14,141.12,32.325]
[1742865765634,0.04713911,141.14,141.13,7.0848]
[1742865783045,0.04713911,141.14,141.12,25.24]
[1742865783245,0.04713911,141.14,141.11,25.2905584]
[1742865783445,7.0853,141.12,141.11,0.0505584]
[1742865784746,7.0874,141.08,141.07,25.24]
[1742865785435,7.0878,141.07,141.01,148.33259953]
[1742865785746,7.0878,141.07,141.03,25.29308723]
[1742865785944,0.0517578,141.06,141.03,25.29308723]
[1742865786144,13.93492401,141.13,141.03,25.24]
[1742865786351,0.05364921,141.06,141.03,25.29261579]
[1742865786553,1.8552,141.13,141.03,25.24]
[1742865787150,0.04513736,141.09,141.07,0.0520903]
[1742865787346,7.0873,141.08,141.07,0.0520903]
[1742865788345,7.088,141.07,141.03,32.3296]
[1742865789247,7.088,141.07,141.04,7.0892]
[1742865789444,0.05396151,141.06,141.04,7.14295141]
[1742865791745,0.05396151,141.06,141.05,7.0888]
[1742865831087,0.05396151,141.06,141.05,32.3288]
[1742865831992,0.05396151,141.06,141.04,0.05375141]
[1742865832295,0.05396151,141.06,141.04,25.29375141]
[1742865833494,7.0888,141.05,141.04,25.29375141]
[1742865833693,7.0888,141.05,141.04,0.05375141]
[1742865833894,0.05396151,141.06,141.04,0.05375141]
[1742865834094,7.14246151,141.06,141.04,0.05375141]
[1742865834889,0.05396151,141.06,141.04,7.14295141]
[1742865835588,7.14226151,141.06,141.04,7.14295141]
[1742865836096,0.05396151,141.06,141.04,7.14295141]
[1742865837001,0.05396151,141.06,141.05,7.0888]
[1742865847002,7.14226151,141.06,141.04,25.29375141]
[1742865847904,7.0888,141.05,141.04,25.29375141]
[1742865849406,7.14246151,141.06,141.04,32.38305141]
[1742865852406,7.14246151,141.06,141.04,7.14305141]
[1742865859603,7.0888,141.05,141.04,0.05375141]
[1742865859911,0.05396151,141.06,141.04,0.05375141]
[1742865861512,7.0888,141.05,141.04,7.14305141]
[1742865861816,0.05396151,141.06,140.97,3.3046]
[1742865862009,7.0901,141.03,141.0,7.0911]
[1742865862916,7.13606045,141.03,141.0,7.0911]
[1742865863113,7.0904,141.02,141.0,7.0911]
[1742865863415,0.04596045,141.03,140.94,255.2]
[1742865863605,7.0907,141.02,140.95,25.24]
[1742865863809,0.04720103,141.0,140.95,25.24]
[1742865864510,0.04720103,141.0,140.92,66.41289494]
[1742865864719,0.04720103,141.0,140.96,7.0929]
[1742865865112,7.0922,140.99,140.96,7.0929]
[1742865865314,0.04720103,141.0,140.95,7.0935]
[1742865865516,25.24,141.0,140.92,29.24319991]
[1742865865715,7.0927,140.98,140.92,29.24319991]
[1742865866312,7.0927,140.98,140.95,7.0937]
[1742865866918,7.0931,140.97,140.89,25.24]
[1742865867118,25.24,141.0,140.95,7.0938]
[1742865867313,7.0926,140.98,140.95,7.0938]
[1742865867822,7.14559735,140.99,140.96,7.0929]
[1742865868120,0.05339735,140.99,140.93,25.24]
[1742865868321,7.0926,140.98,140.95,7.0935]
[1742865868716,7.0926,140.98,140.93,25.24]
[1742865869212,0.05339735,140.99,140.93,25.24]
[1742865869722,7.14559735,140.99,140.96,7.093]
[1742865871518,0.05339735,140.99,140.97,25.24]
[1742865871720,1.9522,141.01,140.97,25.24]
[1742865871920,0.04984619,140.99,140.97,25.24]
[1742865873217,0.04984619,140.99,140.98,7.0923]
[1742865873419,0.04984619,140.99,140.97,25.24]
[1742865874020,0.04984619,140.99,140.94,25.24]
[1742865874216,7.0926,140.98,140.95,7.0935]
[1742865874524,7.14287194,140.98,140.95,7.0935]
[1742865874919,7.14287194,140.98,140.96,7.0932]
[1742865875123,7.14287194,140.98,140.9,14.1924]
[1742865875323,7.14287194,140.98,140.91,25.24]
[1742865875523,7.14287194,140.98,140.95,7.0936]
[1742865876123,7.14287194,140.98,140.96,7.0932]
[1742865876522,7.14287194,140.98,140.92,25.24]
[1742865876719,7.14287194,140.98,140.95,7.0936]
[1742865881530,0.05027194,140.98,140.92,25.24]
[1742865881724,7.0937,140.96,140.92,25.24]
[1742865882021,0.05027194,140.98,140.94,7.094]
[1742865882631,7.093,140.97,140.95,7.0938]
[1742865883222,7.093,140.97,140.94,7.0941]
[1742865883423,0.05027194,140.98,140.94,7.0941]
[1742865884428,0.05027194,140.98,140.92,25.24]
[1742865885629,0.05027194,140.98,140.97,7.0928]
[1742865886530,0.05027194,140.98,140.96,7.093]
[1742865886729,0.05027194,140.98,140.92,25.24]
[1742865887921,0.05027194,140.98,140.93,7.0944]
[1742865888126,0.05027194,140.98,140.92,25.24]